fUSD/lending_fUSD_20250620
["ID","MTS","AMOUNT","RATE_DAILY","PERIOD"]
[366674224,1750407055166,-490.0,0.00025779,4]
[366674225,1750407055177,-490.0,0.00025779,4]
[366674226,1750407055188,-493.79,0.00025779,4]
[366674227,1750407055198,-490.0,0.00025779,4]
[366674228,1750407055208,-1761.42,0.00025779,4]
[366674229,1750407055219,-490.0,0.00025779,4]
[366674230,1750407055230,-490.0,0.00025779,4]
[366674231,1750407055240,-490.0,0.00025779,4]
[366674232,1750407055251,-1967.95,0.00025779,4]
[366674233,1750407055262,-647.56,0.00025779,4]
[366674234,1750407055272,-490.0,0.00025779,4]
[366674235,1750407055283,-490.0,0.00025779,4]
[366674236,1750407055293,-1791.96,0.00025779,4]
[366674237,1750407055303,-490.0,0.00025779,4]
[366674238,1750407055313,-490.0,0.00025779,4]
[366674239,1750407055323,-490.0,0.00025779,4]
[366674240,1750407055333,-490.0,0.00025779,4]
[366674241,1750407055343,-490.0,0.00025779,4]
[366674242,1750407055353,-490.0,0.00025779,4]
[366674243,1750407055364,-490.0,0.00025779,4]
[366674244,1750407055374,-490.0,0.00025779,4]
[366674245,1750407055384,-490.0,0.00025779,4]
[366674246,1750407055395,-619.61,0.00025779,4]
[366674247,1750407055405,-490.0,0.00025779,4]
[366674248,1750407055415,-490.0,0.00025779,4]
[366674249,1750407055425,-490.0,0.00025779,4]
[366674250,1750407055435,-800.28,0.00025779,4]
[366674251,1750407055444,-490.0,0.00025779,4]
[366674252,1750407055455,-490.0,0.00025779,4]
[366674253,1750407055464,-490.0,0.00025779,4]
[366674254,1750407055475,-490.0,0.00025779,4]
[366674255,1750407055485,-490.0,0.00025779,4]
[366674256,1750407055495,-490.0,0.00025779,4]
[366674257,1750407055505,-777.93,0.00025779,4]
[366674258,1750407055515,-698.1,0.00025779,4]
[366674259,1750407055525,-490.0,0.00025779,4]
[366674260,1750407055535,-490.0,0.00025779,4]
[366674261,1750407055546,-490.0,0.00025779,4]
[366674262,1750407055556,-490.0,0.00025779,4]
[366674263,1750407055566,-490.0,0.00025779,4]
[366674264,1750407055576,-1728.61,0.00025779,4]
[366674265,1750407055587,-643.25,0.00025779,4]
[366674266,1750407055598,-490.0,0.00025779,4]
[366674267,1750407055608,-490.0,0.00025779,4]
[366674268,1750407055623,-490.0,0.00025779,4]
[366674269,1750407055633,-2359.5,0.00025779,4]
[366674270,1750407055643,-1191.39,0.00025779,4]
[366674271,1750407055653,-490.0,0.00025779,4]
[366674272,1750407055664,-490.0,0.00025779,4]
[366674273,1750407055674,-1046.83,0.00025779,4]
[366674274,1750407055686,-349.04064805,0.00025779,4]
[366674275,1750407055697,-490.0,0.00025779,4]
[366674276,1750407055707,-355.82423207,0.00025779,4]
[366674277,1750407055718,-510.84,0.00025779,4]
[366674278,1750407055728,-877.91,0.00025779,4]
[366674279,1750407055738,-490.0,0.00025779,4]
[366674280,1750407055748,-490.0,0.00025779,4]
[366674281,1750407055759,-490.0,0.00025779,4]
[366674282,1750407055769,-1265.09,0.00025779,4]
[366674283,1750407055780,-985.03,0.00025779,4]
[366674284,1750407055790,-490.0,0.00025779,4]
[366674285,1750407055800,-1569.69,0.00025779,4]
[366674286,1750407055811,-490.0,0.00025779,4]
[366674287,1750407055822,-490.0,0.00025779,4]
[366674288,1750407055832,-490.0,0.00025779,4]
[366674289,1750407055842,-490.0,0.00025779,4]
[366674290,1750407055852,-406.53021419,0.00025779,4]
[366674291,1750407055862,-490.0,0.00025779,4]
[366674292,1750407055872,-303.95931415,0.00025779,4]
[366674293,1750407055882,-893.16,0.00025779,4]
[366674294,1750407055892,-490.0,0.00025779,4]
[366674295,1750407055902,-490.0,0.00025779,4]
[366674296,1750407055913,-490.0,0.00025779,4]
[366674297,1750407055923,-510.8,0.00025779,4]
[366674298,1750407055934,-636.79,0.00025779,4]
[366674299,1750407055944,-490.0,0.00025779,4]
[366674300,1750407055955,-490.0,0.00025779,4]
[366674301,1750407055965,-490.0,0.00025779,4]
[366674302,1750407055975,-449.00484691,0.00025779,4]
[366674303,1750407055985,-1578.34,0.00025779,4]
[366674304,1750407055997,-490.0,0.00025779,4]
[366674305,1750407056008,-706.2,0.00025779,4]
[366674306,1750407056018,-706.2,0.00025779,4]
[366674307,1750407056028,-490.0,0.00025779,4]
[366674308,1750407056040,-706.2,0.00025779,4]
[366674309,1750407056050,-706.2,0.00025779,4]
[366674310,1750407056062,-490.0,0.00025779,4]
[366674311,1750407056072,-543.08316195,0.00025779,4]
[366674312,1750407056083,-490.0,0.00025779,4]
[366674313,1750407056094,-503.28,0.00025779,4]
[366674314,1750407056104,-490.0,0.00025779,4]
[366674315,1750407056114,-551.41,0.00025779,4]
[366674316,1750407056125,-490.0,0.00025779,4]
[366674317,1750407056135,-1472.86,0.00025779,4]
[366674318,1750407056145,-490.0,0.00025779,4]
[366674319,1750407056155,-682.93,0.00025779,4]
[366674320,1750407056166,-490.0,0.00025779,4]
[366674321,1750407056177,-490.0,0.00025779,4]
[366674322,1750407056187,-490.0,0.00025779,4]
[366674323,1750407056198,-1471.23,0.00025779,4]
[366674324,1750407056210,-490.0,0.00025779,4]
[366674325,1750407056220,-490.0,0.00025779,4]
[366674326,1750407056230,-490.0,0.00025779,4]
[366674327,1750407056240,-812.92,0.00025779,4]
[366674328,1750407056250,-490.0,0.00025779,4]
[366674329,1750407056260,-599.95,0.00025779,4]
[366674330,1750407056270,-490.0,0.00025779,4]
[366674331,1750407056280,-490.0,0.00025779,2]
[366674332,1750407056290,-490.0,0.00025779,4]
[366674333,1750407056301,-1252.71,0.00025779,4]
[366674334,1750407056312,-544.2,0.00025779,4]
[366674335,1750407056322,-490.0,0.00025779,4]
[366674336,1750407056333,-610.55649877,0.00025779,4]
[366674337,1750407056343,-490.0,0.00025779,4]
[366674338,1750407056353,-490.0,0.00025779,4]
[366674339,1750407056363,-1899.52,0.00025779,4]
[366674340,1750407056373,-490.0,0.00025779,4]
[366674341,1750407056383,-490.0,0.00025779,4]
[366674342,1750407056393,-1188.49,0.00025779,4]
[366674343,1750407056403,-495.28,0.00025779,4]
[366674344,1750407056413,-490.0,0.00025779,4]
[366674345,1750407056423,-490.0,0.00025779,4]
[366674346,1750407056433,-1059.36,0.00025779,4]
[366674347,1750407056443,-490.0,0.00025779,4]
[366674348,1750407056453,-490.0,0.00025779,4]
[366674349,1750407056463,-490.0,0.00025779,4]
[366674350,1750407056472,-496.43,0.00025779,4]
[366674351,1750407056482,-490.0,0.00025779,4]
[366674352,1750407056491,-516.57,0.00025779,4]
[366674353,1750407056501,-497.9,0.00025779,4]
[366674354,1750407056511,-490.0,0.00025779,4]
[366674355,1750407056521,-490.0,0.00025779,4]
[366674356,1750407056532,-490.0,0.00025779,4]
[366674357,1750407056543,-490.0,0.00025779,4]
[366674358,1750407056554,-490.0,0.00025779,4]
[366674359,1750407056565,-1409.51,0.00025779,4]
[366674360,1750407056575,-563.37,0.00025779,4]
[366674361,1750407056586,-699.41,0.00025779,4]
[366674362,1750407056597,-747.58,0.00025779,4]
[366674363,1750407056607,-1866.37,0.00025779,4]
[366674364,1750407056619,-490.0,0.00025779,4]
[366674365,1750407056629,-490.0,0.00025779,4]
[366674366,1750407056640,-490.0,0.00025779,4]
[366674367,1750407056650,-490.0,0.00025779,4]
[366674368,1750407056662,-823.29,0.00025779,4]
[366674369,1750407056672,-490.0,0.00025779,4]
[366674370,1750407056683,-490.0,0.00025779,4]
[366674371,1750407056695,-490.0,0.00025779,4]
[366674372,1750407056706,-668.84,0.00025779,4]
[366674373,1750407056717,-490.0,0.00025779,4]
[366674374,1750407056727,-538.21,0.00025779,4]
[366674375,1750407056738,-490.0,0.00025779,4]
[366674376,1750407056748,-664.05,0.00025779,4]
[366674377,1750407056759,-490.0,0.00025779,4]
[366674378,1750407056770,-490.0,0.00025779,4]
[366674379,1750407056780,-511.89,0.00025779,4]
[366674380,1750407056791,-1055.33,0.00025779,4]
[366674381,1750407056801,-490.0,0.00025779,4]
[366674382,1750407056814,-490.0,0.00025779,4]
[366674383,1750407056823,-490.0,0.00025779,4]
[366674384,1750407056833,-490.0,0.00025779,4]
[366674385,1750407057052,-384.00761135,0.00025779,4]
[366674386,1750407057063,-490.0,0.00025779,4]
[366674387,1750407057073,-510.77,0.00025779,4]
[366674388,1750407057084,-490.0,0.00025779,4]
[366674389,1750407057094,-490.0,0.00025779,4]
[366674390,1750407057104,-490.0,0.00025779,4]
[366674391,1750407057114,-1409.57,0.00025779,4]
[366674392,1750407057124,-490.0,0.00025779,4]
[366674393,1750407057134,-490.0,0.00025779,4]
[366674394,1750407057144,-490.0,0.00025779,4]
[366674395,1750407057154,-490.0,0.00025779,4]
[366674396,1750407057165,-445.42446334,0.00025779,4]
[366674397,1750407057175,-490.0,0.00025779,4]
[366674398,1750407057186,-490.0,0.00025779,4]
[366674399,1750407057197,-490.0,0.00025779,4]
[366674400,1750407057207,-549.65,0.00025779,4]
[366674401,1750407057219,-2480.19,0.00025779,4]
[366674402,1750407057230,-716.29,0.00025779,4]
[366674403,1750407057242,-1214.1,0.00025779,4]
[366674404,1750407057251,-495.22,0.00025779,4]
[366674405,1750407057261,-664.54,0.00025779,4]
[366674406,1750407057275,-510.67,0.00025779,4]
[366674407,1750407057285,-490.0,0.00025779,4]
[366674408,1750407057297,-829.7,0.00025779,4]
[366674409,1750407057307,-1200.32,0.00025779,4]
[366674410,1750407057318,-728.37,0.00025779,4]
[366674411,1750407057328,-490.0,0.00025779,4]
[366674412,1750407057338,-899.39,0.00025779,4]
[366674413,1750407057348,-2963.03,0.00025779,4]
[366674414,1750407057359,-490.0,0.00025779,4]
[366674415,1750407057369,-490.0,0.00025779,4]
[366674416,1750407057379,-584.65,0.00025779,4]
[366674417,1750407057390,-490.0,0.00025779,4]
[366674418,1750407057400,-490.0,0.00025779,4]
[366674419,1750407057410,-886.1,0.00025779,4]
[366674420,1750407057420,-1307.92,0.00025779,4]
[366674421,1750407057430,-490.0,0.00025779,4]
[366674422,1750407057440,-490.0,0.00025779,4]
[366674423,1750407057450,-490.0,0.00025779,4]
[366674424,1750407057460,-490.0,0.00025779,4]
[366674425,1750407057470,-2088.27,0.00025779,4]
[366674426,1750407057480,-2088.27,0.00025779,4]
[366674427,1750407057491,-2088.27,0.00025779,4]
[366674428,1750407057502,-2088.27,0.00025779,4]
[366674429,1750407057513,-490.0,0.00025779,4]
[366674430,1750407057523,-490.0,0.00025779,4]
[366674431,1750407057533,-490.0,0.00025779,4]
[366674432,1750407057544,-741.0,0.00025779,4]
[366674433,1750407057555,-1553.46,0.00025779,4]
[366674434,1750407057565,-953.96,0.00025779,4]
[366674435,1750407057575,-1259.31,0.00025779,4]
[366674436,1750407057585,-490.0,0.00025779,4]
[366674437,1750407057595,-490.0,0.00025779,4]
[366674438,1750407057606,-679.71,0.00025779,4]
[366674439,1750407057620,-1904.18,0.00025779,4]
[366674440,1750407057630,-1975.53,0.00025779,4]
[366674441,1750407057641,-920.92,0.00025779,4]
[366674442,1750407057654,-300.0,0.00025779,4]
[366674443,1750407057664,-490.0,0.00025779,4]
[366674444,1750407057674,-490.0,0.00025779,4]
[366674445,1750407057687,-490.0,0.00025779,4]
[366674446,1750407057705,-871.95,0.00025779,4]
[366674447,1750407057716,-490.0,0.00025779,4]
[366674448,1750407057727,-490.0,0.00025779,4]
[366674449,1750407057738,-490.0,0.00025779,4]
[366674450,1750407057749,-300.0,0.00025779,4]
[366674451,1750407057759,-490.0,0.00025779,4]
[366674452,1750407057769,-490.0,0.00025779,4]
[366674453,1750407057779,-490.0,0.00025779,4]
[366674454,1750407057790,-964.83,0.00025779,4]
[366674455,1750407057800,-490.0,0.00025779,4]
[366674456,1750407057811,-490.0,0.00025779,4]
[366674457,1750407057821,-490.0,0.00025779,4]
[366674458,1750407057831,-490.38,0.00025779,4]
[366674459,1750407057840,-490.0,0.00025779,4]
[366674460,1750407057850,-1219.49,0.00025779,4]
[366674461,1750407057860,-500.0,0.00025779,4]
[366674462,1750407057870,-500.0,0.00025779,4]
[366674463,1750407057879,-500.0,0.00025779,4]
[366674464,1750407057890,-500.0,0.00025779,4]
[366674465,1750407057900,-1014.05,0.00025779,4]
[366674466,1750407057910,-826.96,0.00025779,4]
[366674467,1750407057919,-549.63903454,0.00025779,4]
[366674468,1750407057929,-490.0,0.00025779,4]
[366674469,1750407057939,-490.0,0.00025779,4]
[366674470,1750407057948,-490.0,0.00025779,4]
[366674471,1750407057958,-490.0,0.00025779,4]
[366674472,1750407057967,-2249.63,0.00025779,4]
[366674473,1750407057977,-490.0,0.00025779,4]
[366674474,1750407057987,-621.42,0.00025779,4]
[366674475,1750407057997,-535.98,0.00025779,4]
[366674476,1750407058006,-490.0,0.00025779,4]
[366674477,1750407058018,-2427.92,0.00025779,4]
[366674478,1750407058028,-490.0,0.00025779,4]
[366674479,1750407058038,-490.0,0.00025779,4]
[366674480,1750407058048,-490.0,0.00025779,4]
[366674481,1750407058058,-490.0,0.00025779,4]
[366674482,1750407058069,-560.96,0.00025779,4]
[366674483,1750407058079,-490.0,0.00025779,4]
[366674484,1750407058089,-490.0,0.00025779,4]
[366674485,1750407058099,-490.0,0.00025779,4]
[366674486,1750407058109,-490.0,0.00025779,4]
[366674487,1750407058119,-551.59,0.00025779,4]
[366674488,1750407058129,-1506.98,0.00025779,4]
[366674489,1750407058139,-490.0,0.00025779,4]
[366674490,1750407058149,-490.0,0.00025779,4]
[366674491,1750407058159,-1589.15,0.00025779,4]
[366674492,1750407058169,-603.63,0.00025779,4]
[366674493,1750407058180,-490.0,0.00025779,4]
[366674494,1750407058191,-490.0,0.00025779,4]
[366674495,1750407058201,-490.0,0.00025779,4]
[366674496,1750407058211,-490.0,0.00025779,4]
[366674497,1750407058221,-256.29077452,0.00025779,4]
[366674498,1750407058231,-595.37149398,0.00025779,4]
[366674499,1750407058241,-490.0,0.00025779,4]
[366674500,1750407058251,-943.06,0.00025779,4]
[366674501,1750407058261,-514.8,0.00025779,4]
[366674502,1750407058271,-490.0,0.00025779,4]
[366674503,1750407058281,-490.0,0.00025779,4]
[366674504,1750407058291,-789.07,0.00025779,4]
[366674505,1750407058301,-789.07,0.00025779,4]
[366674506,1750407058311,-789.07,0.00025779,4]
[366674507,1750407058321,-490.0,0.00025779,4]
[366674508,1750407058330,-490.0,0.00025779,4]
[366674509,1750407058340,-490.0,0.00025779,4]
[366674510,1750407058350,-490.0,0.00025779,4]
[366674511,1750407058360,-490.0,0.00025779,4]
[366674512,1750407058370,-490.0,0.00025779,4]
[366674513,1750407058380,-501.22,0.00025779,4]
[366674514,1750407058390,-490.0,0.00025779,4]
[366674515,1750407058413,-490.0,0.00025779,4]
[366674516,1750407058433,-302.58,0.00025779,4]
[366674517,1750407058456,-730.8,0.00025779,4]
[366674518,1750407058480,-581.9,0.00025779,4]
[366674519,1750407058499,-520.56,0.00025779,4]
[366674520,1750407058520,-756.7,0.00025779,4]
[366674521,1750407058541,-490.0,0.00025779,4]
[366674522,1750407058565,-1011.96,0.00025779,4]
[366674523,1750407058587,-888.01,0.00025779,4]
[366674524,1750407058607,-543.76,0.00025779,4]
[366674525,1750407058630,-490.0,0.00025779,4]
[366674526,1750407058651,-490.0,0.00025779,4]
[366674527,1750407058668,-924.29,0.00025779,4]
[366674528,1750407058692,-517.26,0.00025779,4]
[366674529,1750407058705,-490.0,0.00025779,4]
[366674530,1750407058724,-490.0,0.00025779,4]
[366674531,1750407058740,-490.0,0.00025779,4]
[366674532,1750407058758,-947.77,0.00025779,4]
[366674533,1750407058776,-490.0,0.00025779,4]
[366674534,1750407058795,-490.0,0.00025779,4]
[366674535,1750407058812,-490.0,0.00025779,4]
[366674536,1750407058830,-879.76,0.00025779,4]
[366674537,1750407058847,-490.0,0.00025779,4]
[366674538,1750407058865,-1008.25,0.00025779,4]
[366674539,1750407058883,-1008.25,0.00025779,4]
[366674540,1750407058902,-1008.25,0.00025779,4]
[366674541,1750407058920,-1008.25,0.00025779,4]
[366674542,1750407058938,-356.56438926,0.00025779,4]
[366674543,1750407058957,-490.0,0.00025779,4]
[366674544,1750407058983,-490.0,0.00025779,4]
[366674545,1750407059013,-490.0,0.00025779,4]
[366674546,1750407059058,-490.0,0.00025779,4]
[366674547,1750407059082,-490.0,0.00025779,4]
[366674548,1750407059104,-344.13609858,0.00025779,4]
[366674549,1750407059125,-490.0,0.00025779,4]
[366674550,1750407059146,-490.0,0.00025779,4]
[366674551,1750407059167,-490.0,0.00025779,4]
[366674552,1750407059187,-490.0,0.00025779,4]
[366674553,1750407059206,-490.0,0.00025779,4]
[366674554,1750407059226,-490.0,0.00025779,4]
[366674555,1750407059245,-690.19,0.00025779,4]
[366674556,1750407059264,-893.07,0.00025779,4]
[366674557,1750407059283,-483.0477907,0.00025779,4]
[366674558,1750407059302,-490.0,0.00025779,4]
[366674559,1750407059322,-490.0,0.00025779,4]
[366674560,1750407059340,-490.0,0.00025779,4]
[366674561,1750407059366,-490.0,0.00025779,4]
[366674562,1750407059396,-490.0,0.00025779,4]
[366674563,1750407059422,-490.0,0.00025779,4]
[366674564,1750407059447,-490.0,0.00025779,4]
[366674565,1750407059471,-490.0,0.00025779,4]
[366674566,1750407059493,-490.0,0.00025779,4]
[366674567,1750407059515,-490.0,0.00025779,4]
[366674568,1750407059537,-530.95,0.00025779,4]
[366674569,1750407059558,-1136.34,0.00025779,4]
[366674570,1750407059579,-490.0,0.00025779,4]
[366674571,1750407059600,-1520.25,0.00025779,4]
[366674572,1750407059622,-780.24,0.00025779,4]
[366674573,1750407059641,-490.0,0.00025779,4]
[366674574,1750407059662,-490.0,0.00025779,4]
[366674575,1750407059681,-490.0,0.00025779,4]
[366674576,1750407059702,-490.0,0.00025779,4]
[366674577,1750407059721,-490.0,0.00025779,4]
[366674578,1750407059746,-490.0,0.00025779,4]
[366674579,1750407059770,-635.82,0.00025779,4]
[366674580,1750407059794,-490.0,0.00025779,4]
[366674581,1750407059821,-490.0,0.00025779,4]
[366674582,1750407059843,-9970.4590779,0.0002578,2]
[366674583,1750407059864,-39881.8363116,0.0002579,2]
[366674584,1750407059885,-80000.0,0.000258,5]
[366674585,1750407059905,-168.0,0.00025818,2]
[366674586,1750407059925,-168.0,0.00025827,2]
[366674587,1750407059946,-150.0,0.00025836,2]
[366674588,1750407059966,-1582.19,0.0002584,4]
[366674589,1750407059986,-3949.3,0.0002584,4]
[366674590,1750407060007,-150.59,0.00025844,2]
[366674591,1750407060026,-154.42573676,0.00025846,2]
[366674592,1750407060046,-204.27808387,0.00025853,2]
[366674593,1750407060066,-256.87383533,0.00025853,2]
[366674594,1750407060087,-168.0,0.00025855,7]
[366674595,1750407060107,-755.5501296,0.00025858,2]
[366674596,1750407060133,-218.98984,0.0002586,2]
[366674597,1750407060154,-754.04,0.00025879,4]
[366674598,1750407060175,-789.07,0.00025879,4]
[366674599,1750407060195,-168.0,0.00025888,2]
[366674600,1750407060217,-159.88773387,0.0002589,2]
[366674601,1750407060237,-238.51804252,0.0002589,2]
[366674602,1750407060256,-890.40874928,0.0002589,2]
[366674603,1750407060277,-5375.13960528,0.0002589,2]
[366674604,1750407060296,-155.0,0.000259,2]
[366674605,1750407060318,-150.0,0.00025904,2]
[366674606,1750407060337,-19940.9181558,0.00025933,2]
[366674607,1750407060356,-154.42573676,0.00025934,2]
[366674608,1750407060375,-717.14687342,0.00025934,14]
[366674609,1750407060394,-9970.4590779,0.00025938,2]
[366674610,1750407060414,-204.27808384,0.0002594,2]
[366674611,1750407060432,-150.0,0.0002594,2]
[366674612,1750407060453,-9970.4590779,0.0002594,2]
[366674613,1750407060471,-490.0,0.00025945,5]
[366674614,1750407060490,-9970.4590779,0.00025949,2]
[366674616,1750407060509,-500.0,0.00025949,2]
[366674617,1750407060528,-19940.9181558,0.0002595,2]
[366674618,1750407060547,-533.35666593,0.00025959,4]
[366674619,1750407060566,-490.0,0.0002596,4]
[366674620,1750407060584,-490.0,0.0002596,4]
[366674621,1750407060603,-490.0,0.0002596,4]
[366674622,1750407060624,-490.0,0.0002596,4]
[366674623,1750407060642,-490.0,0.0002596,4]
[366674624,1750407060661,-1000.0,0.0002596,15]
[366674625,1750407060679,-1000.0,0.0002596,15]
[366674626,1750407060698,-1000.0,0.0002596,15]
[366674627,1750407060720,-1000.0,0.0002596,15]
[366674628,1750407060738,-1000.0,0.0002596,15]
[366674629,1750407060773,-1000.0,0.0002596,15]
[366674630,1750407060801,-1000.0,0.0002596,15]
[366674631,1750407060827,-626.3029315,0.0002596,15]
[366674632,1750407060851,-490.0,0.0002596,4]
[366674633,1750407060875,-156.19,0.0002596,2]
[366674634,1750407060898,-754.04,0.0002596,4]
[366674635,1750407060920,-706.2,0.0002596,4]
[366674636,1750407060941,-2088.27,0.0002596,4]
[366674637,1750407060962,-2752.45,0.0002596,4]
[366674638,1750407060981,-6241.93,0.0002596,4]
[366674639,1750407061002,-490.0,0.0002596,4]
[366674640,1750407061023,-500.0,0.0002596,4]
[366674641,1750407061043,-490.0,0.0002596,4]
[366674642,1750407061063,-490.0,0.0002596,4]
[366674643,1750407061082,-490.0,0.0002596,4]
[366674644,1750407061102,-7616.24,0.0002596,4]
[366674645,1750407061121,-4396.34,0.0002596,4]
[366674646,1750407061153,-1324.85,0.0002596,4]
[366674647,1750407061610,-490.0,0.0002596,4]
[366674648,1750407061624,-678.02,0.0002596,4]
[366674649,1750407061634,-789.07,0.0002596,4]
[366674650,1750407061644,-598.56,0.0002596,4]
[366674651,1750407061655,-13102.7,0.0002596,4]
[366674652,1750407061666,-1397.19,0.0002596,4]
[366674653,1750407061676,-1100.98,0.0002596,4]
[366674654,1750407061686,-490.0,0.0002596,4]
[366674655,1750407061696,-1008.25,0.0002596,4]
[366674656,1750407061707,-1997.91,0.0002596,4]
[366674657,1750407061718,-1045.44,0.0002596,4]
[366674658,1750407061728,-881.36,0.0002596,4]
[366674659,1750407061738,-774.71,0.0002596,4]
[366674660,1750407061748,-14398.14,0.0002596,4]
[366674661,1750407061758,-516.39,0.0002596,4]
[366674662,1750407061769,-768.57,0.0002596,4]
[366674663,1750407061780,-754.04,0.00025961,4]
[366674664,1750407061790,-789.07,0.00025961,4]
[366674665,1750407061800,-653.16,0.00025962,4]
[366674666,1750407061811,-653.16,0.00025962,4]
[366674667,1750407061821,-1582.19,0.00025962,4]
[366674668,1750407061831,-3949.3,0.00025962,4]
[366674669,1750407061842,-500.0,0.00025962,2]
[366674670,1750407061852,-209663.8996075,0.00025963,2]
[366674671,1750407061862,-653.16,0.00025968,4]
[366674672,1750407061872,-706.2,0.00025968,4]
[366674673,1750407061887,-2088.27,0.00025968,4]
[366674674,1750407061897,-500.0,0.00025968,4]
[366674675,1750407061907,-1008.25,0.00025968,4]
[366674676,1750407061917,-754.04,0.00025969,4]
[366674677,1750407061928,-789.07,0.00025969,4]
[366674678,1750407061938,-653.16,0.0002597,4]
[366674679,1750407061949,-150.0,0.0002597,2]
[366674680,1750407061959,-1211.04105339,0.00025971,2]
[366674681,1750407061969,-490.0,0.00025971,4]
[366674682,1750407061978,-490.0,0.00025971,4]
[366674683,1750407061988,-490.0,0.00025971,4]
[366674684,1750407061998,-490.0,0.00025971,4]
[366674685,1750407062008,-490.0,0.00025971,4]
[366674686,1750407062019,-490.0,0.00025971,4]
[366674687,1750407062029,-490.0,0.00025971,4]
[366674688,1750407062039,-490.0,0.00025971,4]
[366674689,1750407062049,-490.0,0.00025971,4]
[366674690,1750407062059,-490.0,0.00025971,4]
[366674691,1750407062070,-490.0,0.00025971,4]
[366674692,1750407062080,-490.0,0.00025971,4]
[366674693,1750407062091,-653.16,0.00025971,4]
[366674694,1750407062101,-754.04,0.00025971,4]
[366674695,1750407062111,-218.98984,0.00025971,2]
[366674696,1750407062122,-218.98983,0.00025971,2]
[366674697,1750407062132,-1582.19,0.00025971,4]
[366674698,1750407062142,-789.07,0.00025971,4]
[366674699,1750407062153,-3949.3,0.00025971,4]
[366674700,1750407062163,-270.547979,0.00025972,7]
[366674701,1750407062173,-270.547979,0.00025972,7]
[366674702,1750407062184,-490.0,0.00025972,4]
[366674703,1750407062194,-491.88431834,0.00025972,4]
[366674704,1750407062204,-490.0,0.00025972,4]
[366674705,1750407062214,-490.0,0.00025972,4]
[366674706,1750407062224,-490.0,0.00025972,4]
[366674707,1750407062234,-493.48035126,0.00025972,4]
[366674708,1750407062244,-490.0,0.00025972,4]
[366674709,1750407062254,-443.59138921,0.00025972,4]
[366674710,1750407062264,-490.0,0.00025972,4]
[366674711,1750407062274,-490.66610819,0.00025972,4]
[366674712,1750407062285,-490.0,0.00025972,4]
[366674713,1750407062295,-490.0,0.00025972,4]
[366674714,1750407062304,-490.0,0.00025972,4]
[366674715,1750407062315,-490.0,0.00025972,4]
[366674716,1750407062338,-461.23562253,0.00025972,4]
[366674717,1750407062350,-490.0,0.00025972,2]
[366674718,1750407062360,-151.0,0.00025972,7]
[366674719,1750407062371,-490.0,0.00025972,3]
[366674720,1750407062382,-490.0,0.00025972,4]
[366674721,1750407062392,-151.0,0.00025972,7]
[366674722,1750407062403,-490.47378088,0.00025972,4]
[366674723,1750407062414,-490.0,0.00025972,4]
[366674724,1750407062424,-490.0,0.00025972,4]